[Event "Titled Tuesday Blitz January 17 Early 2023"]
[White "Qashashvili, Alexandre"]
[Black "Sadubayev, Airat"]
[WhiteFideId "13600842"]
[BlackFideId "13713264"]
[WhiteElo "2505"]
[BlackElo "2320"]
[Result "1-0"]
[Round "02"]
[TimeControl "180+2"]
[Date "2023.01.17"]
[WhiteClock "0:00:16"]
[BlackClock "0:00:07"]

1. e4 {[%clk 0:03:00]}  c6 {[%clk 0:02:59]} 2. d4 {[%clk 0:02:59]}  d5 {[%clk 0:02:59]} 3. Nc3 {[%clk 0:02:58]}  dxe4 {[%clk 0:02:58]} 4. Nxe4 {[%clk 0:02:59]}  Bf5 {[%clk 0:02:58]} 5. Ng3 {[%clk 0:02:59]}  Bg6 {[%clk 0:02:58]} 6. Nf3 {[%clk 0:02:57]}  Nd7 {[%clk 0:02:56]} 7. Bd3 {[%clk 0:02:56]}  Bxd3 {[%clk 0:02:56]} 8. Qxd3 {[%clk 0:02:57]}  e6 {[%clk 0:02:55]} 9. Bf4 {[%clk 0:02:53]}  Qa5+ {[%clk 0:02:54]} 10. c3 {[%clk 0:02:52]}  Ngf6 {[%clk 0:02:53]} 11. O-O {[%clk 0:02:51]}  Be7 {[%clk 0:02:52]} 12. Ne5 {[%clk 0:02:51]}  Nxe5 {[%clk 0:02:47]} 13. Bxe5 {[%clk 0:02:50]}  Rd8 {[%clk 0:02:40]} 14. Qf3 {[%clk 0:02:41]}  Qd5 {[%clk 0:02:33]} 15. Qxd5 {[%clk 0:02:41]}  cxd5 {[%clk 0:02:32]} 16. Rfe1 {[%clk 0:02:39]}  Kd7 {[%clk 0:02:31]} 17. Re2 {[%clk 0:02:35]}  h5 {[%clk 0:02:25]} 18. h3 {[%clk 0:02:33]}  h4 {[%clk 0:02:06]} 19. Nf1 {[%clk 0:02:28]}  Rhg8 {[%clk 0:02:04]} 20. Ne3 {[%clk 0:02:28]}  Ne4 {[%clk 0:02:02]} 21. f3 {[%clk 0:02:26]}  Nd6 {[%clk 0:01:58]} 22. Rae1 {[%clk 0:02:19]}  Rc8 {[%clk 0:01:49]} 23. Kf2 {[%clk 0:02:04]}  Nc4 {[%clk 0:01:48]} 24. Nxc4 {[%clk 0:02:04]}  Rxc4 {[%clk 0:01:48]} 25. Re3 {[%clk 0:01:54]}  g6 {[%clk 0:01:45]} 26. Ke2 {[%clk 0:01:50]}  Rgc8 {[%clk 0:01:44]} 27. Kd3 {[%clk 0:01:50]}  b5 {[%clk 0:01:43]} 28. a3 {[%clk 0:01:49]}  a5 {[%clk 0:01:42]} 29. Ra1 {[%clk 0:01:48]}  Ke8 {[%clk 0:01:37]} 30. Bh2 {[%clk 0:01:45]}  b4 {[%clk 0:01:24]} 31. axb4 {[%clk 0:01:44]}  axb4 {[%clk 0:01:24]} 32. Kd2 {[%clk 0:01:38]}  bxc3+ {[%clk 0:01:21]} 33. bxc3 {[%clk 0:01:37]}  Bg5 {[%clk 0:01:20]} 34. f4 {[%clk 0:01:36]}  Be7 {[%clk 0:01:18]} 35. Ra2 {[%clk 0:01:32]}  R4c6 {[%clk 0:01:07]} 36. Rc2 {[%clk 0:01:29]}  Ra6 {[%clk 0:01:04]} 37. Re1 {[%clk 0:01:28]}  Bd6 {[%clk 0:00:59]} 38. Kd3 {[%clk 0:01:28]}  Kd7 {[%clk 0:00:59]} 39. Rf1 {[%clk 0:01:20]}  Ra3 {[%clk 0:00:52]} 40. Bg1 {[%clk 0:01:14]}  Rb8 {[%clk 0:00:49]} 41. Be3 {[%clk 0:01:10]}  Rbb3 {[%clk 0:00:48]} 42. Rfc1 {[%clk 0:01:10]}  Ra8 {[%clk 0:00:46]} 43. Rf1 {[%clk 0:01:07]}  Rba3 {[%clk 0:00:41]} 44. Bd2 {[%clk 0:01:06]}  Ra2 {[%clk 0:00:40]} 45. Rxa2 {[%clk 0:00:58]}  Rxa2 {[%clk 0:00:39]} 46. Rb1 {[%clk 0:00:59]}  Kc6 {[%clk 0:00:38]} 47. Rc1 {[%clk 0:00:56]}  Ra8 {[%clk 0:00:24]} 48. Rf1 {[%clk 0:00:50]}  Rh8 {[%clk 0:00:22]} 49. Ra1 {[%clk 0:00:41]}  Rb8 {[%clk 0:00:21]} 50. Ra6+ {[%clk 0:00:39]}  Kd7 {[%clk 0:00:21]} 51. Ra7+ {[%clk 0:00:39]}  Ke8 {[%clk 0:00:22]} 52. Ra1 {[%clk 0:00:36]}  Be7 {[%clk 0:00:21]} 53. Rc1 {[%clk 0:00:33]}  Rb2 {[%clk 0:00:20]} 54. Ra1 {[%clk 0:00:32]}  f5 {[%clk 0:00:20]} 55. Rc1 {[%clk 0:00:26]}  Kf7 {[%clk 0:00:20]} 56. Rc2 {[%clk 0:00:26]}  Rb3 {[%clk 0:00:19]} 57. Ra2 {[%clk 0:00:24]}  Rb7 {[%clk 0:00:17]} 58. Be1 {[%clk 0:00:22]}  Rb1 {[%clk 0:00:17]} 59. Re2 {[%clk 0:00:22]}  Bd6 {[%clk 0:00:14]} 60. Bd2 {[%clk 0:00:21]}  Rg1 {[%clk 0:00:13]} 61. Rf2 {[%clk 0:00:20]}  Be7 {[%clk 0:00:12]} 62. Be3 {[%clk 0:00:20]}  Rd1+ {[%clk 0:00:12]} 63. Bd2 {[%clk 0:00:20]}  g5 {[%clk 0:00:11]} 64. fxg5 {[%clk 0:00:18]}  Bxg5 {[%clk 0:00:10]} 65. Kc2 {[%clk 0:00:19]}  Rxd2+ {[%clk 0:00:07]} 66. Rxd2 {[%clk 0:00:18]}  Bxd2 {[%clk 0:00:08]} 67. Kxd2 {[%clk 0:00:19]}  Kf6 {[%clk 0:00:09]} 68. Ke3 {[%clk 0:00:19]}  e5 {[%clk 0:00:07]} 69. dxe5+ {[%clk 0:00:18]}  Kxe5 {[%clk 0:00:08]} 70. Kf3 {[%clk 0:00:16]}  Ke6 {[%clk 0:00:09]} 71. Kf4 {[%clk 0:00:15]}  Kf6 {[%clk 0:00:09]} 72. g3 {[%clk 0:00:15]}  hxg3 {[%clk 0:00:09]} 73. Kxg3 {[%clk 0:00:15]}  Ke5 {[%clk 0:00:09]} 74. Kf3 {[%clk 0:00:15]}  f4 {[%clk 0:00:08]} 75. h4 {[%clk 0:00:16]}  Kf5 {[%clk 0:00:05]} 76. h5 {[%clk 0:00:16]}  Kg5 {[%clk 0:00:05]} 77. h6 {[%clk 0:00:16]}  Kxh6 {[%clk 0:00:05]} 78. Kxf4 {[%clk 0:00:17]}  Kg6 {[%clk 0:00:06]} 79. Ke5 {[%clk 0:00:17]}  d4 {[%clk 0:00:06]} 80. cxd4 {[%clk 0:00:16]}  Kf7 {[%clk 0:00:07]} 81. Kd6 {[%clk 0:00:16]}  Ke8 {[%clk 0:00:07]} 82. Kc7 {[%clk 0:00:16]} 1-0


[Site "https://www.chess.com"]

[Event "Titled Tuesday Blitz January 17 Early 2023"]
[White "Msellek, Ilyass"]
[Black "Melikhov, Evgeny V."]
[WhiteFideId "675938"]
[BlackFideId "4122046"]
[WhiteElo "2420"]
[BlackElo "2269"]
[Result "1-0"]
[Round "02"]
[TimeControl "180+2"]
[Date "2023.01.17"]
[WhiteClock "0:01:45"]
[BlackClock "0:00:02"]

1. d4 {[%clk 0:02:57]}  Nf6 {[%clk 0:02:56]} 2. Nf3 {[%clk 0:02:57]}  d5 {[%clk 0:02:55]} 3. g3 {[%clk 0:02:53]}  Bg4 {[%clk 0:02:52]} 4. Ne5 {[%clk 0:02:51]}  Bf5 {[%clk 0:02:51]} 5. c4 {[%clk 0:02:51]}  c6 {[%clk 0:02:46]} 6. Nc3 {[%clk 0:02:51]}  e6 {[%clk 0:02:45]} 7. Qb3 {[%clk 0:02:51]}  Qb6 {[%clk 0:02:43]} 8. c5 {[%clk 0:02:51]}  Qxb3 {[%clk 0:02:40]} 9. axb3 {[%clk 0:02:52]}  Nbd7 {[%clk 0:02:39]} 10. Nxd7 {[%clk 0:02:50]}  Nxd7 {[%clk 0:02:32]} 11. b4 {[%clk 0:02:50]}  e5 {[%clk 0:02:24]} 12. e3 {[%clk 0:02:48]}  Be7 {[%clk 0:02:18]} 13. b5 {[%clk 0:02:47]}  O-O {[%clk 0:02:16]} 14. bxc6 {[%clk 0:02:47]}  bxc6 {[%clk 0:02:16]} 15. Ba6 {[%clk 0:02:48]}  Rab8 {[%clk 0:02:13]} 16. Ra4 {[%clk 0:02:42]}  Bc2 {[%clk 0:02:08]} 17. Ra2 {[%clk 0:02:41]}  Rb3 {[%clk 0:01:43]} 18. Kd2 {[%clk 0:02:36]}  Bg6 {[%clk 0:01:41]} 19. Be2 {[%clk 0:02:35]}  Ra8 {[%clk 0:01:35]} 20. Bd1 {[%clk 0:02:33]}  Rb4 {[%clk 0:01:34]} 21. Ra4 {[%clk 0:02:32]}  a5 {[%clk 0:01:30]} 22. Ne2 {[%clk 0:02:24]}  Rb5 {[%clk 0:00:49]} 23. f4 {[%clk 0:02:20]}  f6 {[%clk 0:00:47]} 24. Nc3 {[%clk 0:02:15]}  Rb4 {[%clk 0:00:45]} 25. Bg4 {[%clk 0:02:14]}  Rxa4 {[%clk 0:00:35]} 26. Nxa4 {[%clk 0:02:13]}  Be4 {[%clk 0:00:35]} 27. Re1 {[%clk 0:02:11]}  f5 {[%clk 0:00:35]} 28. Be2 {[%clk 0:02:06]}  exd4 {[%clk 0:00:34]} 29. exd4 {[%clk 0:02:06]}  Rb8 {[%clk 0:00:22]} 30. Ke3 {[%clk 0:01:59]}  Rb3+ {[%clk 0:00:20]} 31. Kf2 {[%clk 0:01:57]}  Bf6 {[%clk 0:00:16]} 32. Be3 {[%clk 0:01:52]}  Rb4 {[%clk 0:00:16]} 33. Nc3 {[%clk 0:01:49]}  Bxd4 {[%clk 0:00:16]} 34. Bxd4 {[%clk 0:01:49]}  Rxd4 {[%clk 0:00:16]} 35. Ra1 {[%clk 0:01:50]}  Nxc5 {[%clk 0:00:10]} 36. Rxa5 {[%clk 0:01:50]}  Nd3+ {[%clk 0:00:10]} 37. Ke3 {[%clk 0:01:49]}  c5 {[%clk 0:00:07]} 38. Rxc5 {[%clk 0:01:42]}  Nxc5 {[%clk 0:00:03]} 39. Kxd4 {[%clk 0:01:43]}  Nb3+ {[%clk 0:00:03]} 40. Ke5 {[%clk 0:01:43]}  d4 {[%clk 0:00:04]} 41. Nxe4 {[%clk 0:01:43]}  fxe4 {[%clk 0:00:02]} 42. Bc4+ {[%clk 0:01:44]}  Kf8 {[%clk 0:00:02]} 43. Bxb3 {[%clk 0:01:45]}  d3 {[%clk 0:00:02]} 44. Kxe4 {[%clk 0:01:45]} 1-0


[Site "https://www.chess.com"]

[Event "Titled Tuesday Blitz January 17 Early 2023"]
[White "Fernandez Siles, Luis"]
[Black "Dixit, Nikhil"]
[WhiteFideId "2209420"]
[BlackFideId "5059534"]
[WhiteElo "2218"]
[BlackElo "2257"]
[Result "0-1"]
[Round "02"]
[TimeControl "180+2"]
[Date "2023.01.17"]
[WhiteClock "0:00:57"]
[BlackClock "0:01:24"]

1. d4 {[%clk 0:03:00]}  Nf6 {[%clk 0:02:56]} 2. c4 {[%clk 0:03:00]}  g6 {[%clk 0:02:56]} 3. Nc3 {[%clk 0:02:59]}  Bg7 {[%clk 0:02:52]} 4. e4 {[%clk 0:02:59]}  d6 {[%clk 0:02:51]} 5. Nf3 {[%clk 0:02:59]}  O-O {[%clk 0:02:51]} 6. Be2 {[%clk 0:03:00]}  Nbd7 {[%clk 0:02:50]} 7. O-O {[%clk 0:02:58]}  e5 {[%clk 0:02:50]} 8. Re1 {[%clk 0:02:54]}  exd4 {[%clk 0:02:42]} 9. Nxd4 {[%clk 0:02:53]}  Nc5 {[%clk 0:02:43]} 10. Bf1 {[%clk 0:02:49]}  Re8 {[%clk 0:02:40]} 11. f3 {[%clk 0:02:48]}  c6 {[%clk 0:02:28]} 12. Kh1 {[%clk 0:02:41]}  Nh5 {[%clk 0:02:25]} 13. g3 {[%clk 0:02:32]}  f5 {[%clk 0:02:19]} 14. exf5 {[%clk 0:02:11]}  Rxe1 {[%clk 0:02:15]} 15. Qxe1 {[%clk 0:02:04]}  Bxd4 {[%clk 0:02:16]} 16. fxg6 {[%clk 0:02:04]}  hxg6 {[%clk 0:02:16]} 17. Be3 {[%clk 0:01:44]}  Bf6 {[%clk 0:01:59]} 18. Rd1 {[%clk 0:01:41]}  Qe7 {[%clk 0:01:59]} 19. Qd2 {[%clk 0:01:41]}  Ng7 {[%clk 0:01:46]} 20. Bxc5 {[%clk 0:01:33]}  dxc5 {[%clk 0:01:44]} 21. Ne4 {[%clk 0:01:34]}  Bf5 {[%clk 0:01:40]} 22. Bd3 {[%clk 0:01:24]}  Rd8 {[%clk 0:01:37]} 23. Qf4 {[%clk 0:01:04]}  Bxe4 {[%clk 0:01:32]} 24. fxe4 {[%clk 0:01:02]}  Qe5 {[%clk 0:01:29]} 25. Qh6 {[%clk 0:00:57]}  Rxd3 {[%clk 0:01:24]} 0-1


[Site "https://www.chess.com"]

[Event "Titled Tuesday Blitz January 17 Early 2023"]
[White "I_KID_you_not"]
[Black "Fiorito, Joaquin"]
[BlackFideId "180173"]
[WhiteElo "2332"]
[BlackElo "2405"]
[Result "0-1"]
[Round "02"]
[TimeControl "180+2"]
[Date "2023.01.17"]
[WhiteClock "0:00:01"]
[BlackClock "0:00:14"]

1. e4 {[%clk 0:03:00]}  c6 {[%clk 0:02:59]} 2. d4 {[%clk 0:02:59]}  d5 {[%clk 0:03:00]} 3. exd5 {[%clk 0:03:00]}  cxd5 {[%clk 0:03:00]} 4. Bd3 {[%clk 0:03:01]}  Nc6 {[%clk 0:03:00]} 5. c3 {[%clk 0:03:01]}  Qc7 {[%clk 0:02:59]} 6. Ne2 {[%clk 0:03:00]}  Nf6 {[%clk 0:02:55]} 7. Bf4 {[%clk 0:02:52]}  Qb6 {[%clk 0:02:55]} 8. Qb3 {[%clk 0:02:51]}  Bg4 {[%clk 0:02:53]} 9. Qxb6 {[%clk 0:02:41]}  axb6 {[%clk 0:02:53]} 10. h3 {[%clk 0:02:38]}  Bh5 {[%clk 0:02:51]} 11. Na3 {[%clk 0:02:30]}  Bg6 {[%clk 0:02:20]} 12. Bxg6 {[%clk 0:02:26]}  hxg6 {[%clk 0:02:21]} 13. Nb5 {[%clk 0:02:26]}  Kd7 {[%clk 0:02:12]} 14. Nc1 {[%clk 0:01:59]}  e6 {[%clk 0:02:08]} 15. Nd3 {[%clk 0:01:58]}  Ne8 {[%clk 0:02:06]} 16. Kd2 {[%clk 0:01:41]}  Nd6 {[%clk 0:01:59]} 17. Nxd6 {[%clk 0:01:35]}  Bxd6 {[%clk 0:02:00]} 18. Bxd6 {[%clk 0:01:35]}  Kxd6 {[%clk 0:02:01]} 19. f4 {[%clk 0:01:31]}  Na5 {[%clk 0:01:55]} 20. Ne5 {[%clk 0:01:28]}  Ke7 {[%clk 0:01:50]} 21. Kd3 {[%clk 0:01:23]}  Nc6 {[%clk 0:01:48]} 22. a3 {[%clk 0:01:09]}  Na5 {[%clk 0:01:41]} 23. Rae1 {[%clk 0:01:05]}  b5 {[%clk 0:01:41]} 24. g4 {[%clk 0:01:02]}  Nc4 {[%clk 0:01:41]} 25. Re2 {[%clk 0:01:02]}  Nd6 {[%clk 0:01:28]} 26. Rhh2 {[%clk 0:00:45]}  Rh7 {[%clk 0:01:26]} 27. Nf3 {[%clk 0:00:45]}  Ne4 {[%clk 0:01:14]} 28. Ng5 {[%clk 0:00:35]}  Nxg5 {[%clk 0:01:14]} 29. fxg5 {[%clk 0:00:36]}  Rah8 {[%clk 0:01:12]} 30. Re3 {[%clk 0:00:35]}  Rh4 {[%clk 0:01:12]} 31. Rg3 {[%clk 0:00:36]}  f6 {[%clk 0:01:10]} 32. gxf6+ {[%clk 0:00:36]}  gxf6 {[%clk 0:01:11]} 33. Ke3 {[%clk 0:00:35]}  g5 {[%clk 0:01:06]} 34. Kf3 {[%clk 0:00:34]}  Kf7 {[%clk 0:01:03]} 35. Kg2 {[%clk 0:00:33]}  Re8 {[%clk 0:00:59]} 36. Rf3 {[%clk 0:00:33]}  Rh6 {[%clk 0:00:31]} 37. Rh1 {[%clk 0:00:32]}  e5 {[%clk 0:00:27]} 38. dxe5 {[%clk 0:00:32]}  Rxe5 {[%clk 0:00:28]} 39. Rf2 {[%clk 0:00:28]}  Rh8 {[%clk 0:00:25]} 40. Rhf1 {[%clk 0:00:23]}  Re6 {[%clk 0:00:26]} 41. Rd2 {[%clk 0:00:19]}  Rd8 {[%clk 0:00:23]} 42. Rf3 {[%clk 0:00:18]}  Re5 {[%clk 0:00:19]} 43. Rdf2 {[%clk 0:00:16]}  Rd6 {[%clk 0:00:19]} 44. Rd2 {[%clk 0:00:17]}  Ke7 {[%clk 0:00:18]} 45. Kg3 {[%clk 0:00:17]}  Re4 {[%clk 0:00:18]} 46. Rfd3 {[%clk 0:00:14]}  Ke6 {[%clk 0:00:18]} 47. Rf2 {[%clk 0:00:14]}  d4 {[%clk 0:00:15]} 48. cxd4 {[%clk 0:00:12]}  Rexd4 {[%clk 0:00:15]} 49. Rxd4 {[%clk 0:00:11]}  Rxd4 {[%clk 0:00:16]} 50. Rf5 {[%clk 0:00:11]}  Rd3+ {[%clk 0:00:15]} 51. Rf3 {[%clk 0:00:11]}  Rxf3+ {[%clk 0:00:13]} 52. Kxf3 {[%clk 0:00:11]}  Kd5 {[%clk 0:00:14]} 53. Kg3 {[%clk 0:00:07]}  Kc4 {[%clk 0:00:14]} 54. h4 {[%clk 0:00:08]}  gxh4+ {[%clk 0:00:15]} 55. Kxh4 {[%clk 0:00:08]}  Kb3 {[%clk 0:00:15]} 56. Kh5 {[%clk 0:00:09]}  Kxb2 {[%clk 0:00:15]} 57. Kg6 {[%clk 0:00:10]}  Kxa3 {[%clk 0:00:16]} 58. Kxf6 {[%clk 0:00:10]}  b4 {[%clk 0:00:14]} 59. g5 {[%clk 0:00:11]}  b3 {[%clk 0:00:15]} 60. g6 {[%clk 0:00:11]}  b2 {[%clk 0:00:16]} 61. g7 {[%clk 0:00:12]}  b1=Q {[%clk 0:00:17]} 62. g8=Q {[%clk 0:00:12]}  Qb2+ {[%clk 0:00:17]} 63. Ke7 {[%clk 0:00:12]}  Qe5+ {[%clk 0:00:16]} 64. Kd7 {[%clk 0:00:11]}  b5 {[%clk 0:00:15]} 65. Qa8+ {[%clk 0:00:08]}  Kb4 {[%clk 0:00:16]} 66. Qf8+ {[%clk 0:00:05]}  Qc5 {[%clk 0:00:15]} 67. Qf4+ {[%clk 0:00:04]}  Qc4 {[%clk 0:00:15]} 68. Qd2+ {[%clk 0:00:04]}  Qc3 {[%clk 0:00:15]} 69. Qd6+ {[%clk 0:00:03]}  Kb3 {[%clk 0:00:14]} 70. Qd5+ {[%clk 0:00:01]}  Ka4 {[%clk 0:00:14]} 71. Qa8+ {[%clk 0:00:01]}  Kb4 {[%clk 0:00:14]} 0-1


[Site "https://www.chess.com"]

[Event "Titled Tuesday Blitz January 17 Early 2023"]
[White "Aldokhin, Ivan"]
[Black "Onslow, Alfie"]
[WhiteFideId "24115720"]
[BlackFideId "436976"]
[WhiteElo "2413"]
[BlackElo "2157"]
[Result "1-0"]
[Round "02"]
[TimeControl "180+2"]
[Date "2023.01.17"]
[WhiteClock "0:00:05"]
[BlackClock "0:00:02"]

1. e4 {[%clk 0:02:59]}  c5 {[%clk 0:02:59]} 2. Nf3 {[%clk 0:03:00]}  Nc6 {[%clk 0:03:00]} 3. d4 {[%clk 0:03:01]}  cxd4 {[%clk 0:03:01]} 4. Nxd4 {[%clk 0:03:02]}  Qc7 {[%clk 0:03:02]} 5. Nc3 {[%clk 0:03:02]}  e6 {[%clk 0:03:01]} 6. Nxc6 {[%clk 0:03:00]}  bxc6 {[%clk 0:03:00]} 7. Bd3 {[%clk 0:03:01]}  d5 {[%clk 0:03:00]} 8. O-O {[%clk 0:03:01]}  Nf6 {[%clk 0:03:00]} 9. Qe2 {[%clk 0:03:01]}  Be7 {[%clk 0:02:59]} 10. Bg5 {[%clk 0:02:55]}  O-O {[%clk 0:02:55]} 11. e5 {[%clk 0:02:48]}  Ne4 {[%clk 0:02:08]} 12. Nxe4 {[%clk 0:02:45]}  dxe4 {[%clk 0:02:07]} 13. Qxe4 {[%clk 0:02:44]}  g6 {[%clk 0:01:53]} 14. Bxe7 {[%clk 0:02:39]}  Qxe7 {[%clk 0:01:50]} 15. Rad1 {[%clk 0:02:28]}  Bb7 {[%clk 0:01:47]} 16. Qc4 {[%clk 0:02:24]}  c5 {[%clk 0:01:46]} 17. Be4 {[%clk 0:02:23]}  Rab8 {[%clk 0:01:46]} 18. b3 {[%clk 0:02:16]}  Bxe4 {[%clk 0:01:37]} 19. Qxe4 {[%clk 0:02:16]}  Rb4 {[%clk 0:01:37]} 20. Qe3 {[%clk 0:02:11]}  Rc8 {[%clk 0:01:20]} 21. Rd6 {[%clk 0:02:05]}  c4 {[%clk 0:00:57]} 22. Rfd1 {[%clk 0:02:04]}  cxb3 {[%clk 0:00:52]} 23. cxb3 {[%clk 0:02:04]}  Rb7 {[%clk 0:00:50]} 24. g3 {[%clk 0:01:58]}  Rbc7 {[%clk 0:00:49]} 25. h4 {[%clk 0:01:57]}  h5 {[%clk 0:00:49]} 26. Qd4 {[%clk 0:01:49]}  Kg7 {[%clk 0:00:49]} 27. Rd7 {[%clk 0:01:39]}  Qa3 {[%clk 0:00:48]} 28. Qf4 {[%clk 0:01:34]}  Rxd7 {[%clk 0:00:21]} 29. Rxd7 {[%clk 0:01:35]}  Rf8 {[%clk 0:00:21]} 30. g4 {[%clk 0:01:36]}  Qxa2 {[%clk 0:00:17]} 31. gxh5 {[%clk 0:01:32]}  Qb1+ {[%clk 0:00:17]} 32. Kh2 {[%clk 0:01:28]}  Qf5 {[%clk 0:00:16]} 33. Qxf5 {[%clk 0:01:19]}  gxf5 {[%clk 0:00:16]} 34. Rxa7 {[%clk 0:01:12]}  Rb8 {[%clk 0:00:17]} 35. h6+ {[%clk 0:01:07]}  Kg6 {[%clk 0:00:11]} 36. h7 {[%clk 0:01:01]}  Rh8 {[%clk 0:00:09]} 37. h5+ {[%clk 0:00:47]}  Kg7 {[%clk 0:00:05]} 38. Kg3 {[%clk 0:00:43]}  Rxh7 {[%clk 0:00:03]} 39. Kh4 {[%clk 0:00:44]}  Rh8 {[%clk 0:00:03]} 40. Kg5 {[%clk 0:00:41]}  Rg8 {[%clk 0:00:03]} 41. b4 {[%clk 0:00:33]}  Rb8 {[%clk 0:00:03]} 42. h6+ {[%clk 0:00:30]}  Kg8 {[%clk 0:00:03]} 43. Kf6 {[%clk 0:00:28]}  Rxb4 {[%clk 0:00:03]} 44. Rxf7 {[%clk 0:00:27]}  Rh4 {[%clk 0:00:02]} 45. Kxe6 {[%clk 0:00:15]}  Rxh6+ {[%clk 0:00:02]} 46. Rf6 {[%clk 0:00:15]}  Rh2 {[%clk 0:00:02]} 47. Rxf5 {[%clk 0:00:15]}  Kg7 {[%clk 0:00:02]} 48. Kd7 {[%clk 0:00:10]}  Rh8 {[%clk 0:00:02]} 49. e6 {[%clk 0:00:10]}  Kg6 {[%clk 0:00:03]} 50. Rc5 {[%clk 0:00:04]}  Rh7+ {[%clk 0:00:02]} 51. e7 {[%clk 0:00:04]}  Kf6 {[%clk 0:00:03]} 52. Rc6+ {[%clk 0:00:04]}  Ke5 {[%clk 0:00:03]} 53. Re6+ {[%clk 0:00:04]}  Kd5 {[%clk 0:00:03]} 54. Rd6+ {[%clk 0:00:04]}  Kc5 {[%clk 0:00:04]} 55. Rg6 {[%clk 0:00:04]}  Kd5 {[%clk 0:00:03]} 56. Kd8 {[%clk 0:00:04]}  Rh8+ {[%clk 0:00:02]} 57. e8=Q {[%clk 0:00:05]}  Rxe8+ {[%clk 0:00:02]} 58. Kxe8 {[%clk 0:00:05]} 1-0


[Site "https://www.chess.com"]

[Event "Titled Tuesday Blitz January 17 Early 2023"]
[White "Riverol, Jose"]
[Black "Pak, Yevgeniy"]
[WhiteFideId "3000427"]
[BlackFideId "14201712"]
[WhiteElo "2304"]
[BlackElo "2384"]
[Result "0-1"]
[Round "02"]
[TimeControl "180+2"]
[Date "2023.01.17"]
[WhiteClock "0:00:06"]
[BlackClock "0:01:11"]

1. d4 {[%clk 0:03:00]}  Nf6 {[%clk 0:02:59]} 2. c4 {[%clk 0:03:00]}  c5 {[%clk 0:02:58]} 3. Nf3 {[%clk 0:02:59]}  cxd4 {[%clk 0:02:57]} 4. Nxd4 {[%clk 0:03:00]}  e6 {[%clk 0:02:53]} 5. g3 {[%clk 0:02:58]}  d5 {[%clk 0:02:51]} 6. Bg2 {[%clk 0:02:58]}  e5 {[%clk 0:02:49]} 7. Nb3 {[%clk 0:02:53]}  d4 {[%clk 0:02:47]} 8. O-O {[%clk 0:02:51]}  Nc6 {[%clk 0:02:47]} 9. e3 {[%clk 0:02:50]}  d3 {[%clk 0:02:33]} 10. Nc3 {[%clk 0:02:44]}  h5 {[%clk 0:02:19]} 11. Nd5 {[%clk 0:02:42]}  Nb4 {[%clk 0:01:28]} 12. Nxf6+ {[%clk 0:01:42]}  gxf6 {[%clk 0:01:26]} 13. Bd2 {[%clk 0:01:39]}  Bg4 {[%clk 0:01:22]} 14. f3 {[%clk 0:01:27]}  Be6 {[%clk 0:01:22]} 15. Bxb4 {[%clk 0:00:16]}  Bxb4 {[%clk 0:01:20]} 16. Nd2 {[%clk 0:00:15]}  Qb6 {[%clk 0:01:16]} 17. Re1 {[%clk 0:00:13]}  O-O-O {[%clk 0:01:13]} 18. b3 {[%clk 0:00:12]}  h4 {[%clk 0:01:12]} 19. Rc1 {[%clk 0:00:06]}  hxg3 {[%clk 0:01:12]} 20. hxg3 {[%clk 0:00:06]}  Bh3 {[%clk 0:01:11]} 0-1


[Site "https://www.chess.com"]

[Event "Titled Tuesday Blitz January 17 Early 2023"]
[White "Padmini, Rout"]
[Black "parintele_chess"]
[WhiteFideId "5029295"]
[WhiteElo "2375"]
[BlackElo "2259"]
[Result "1-0"]
[Round "02"]
[TimeControl "180+2"]
[Date "2023.01.17"]
[WhiteClock "0:01:17"]
[BlackClock "0:00:02"]

1. e4 {[%clk 0:03:00]}  e5 {[%clk 0:02:52]} 2. Nf3 {[%clk 0:02:58]}  Nc6 {[%clk 0:02:52]} 3. Bc4 {[%clk 0:02:57]}  Nf6 {[%clk 0:02:52]} 4. d3 {[%clk 0:02:56]}  Bc5 {[%clk 0:02:51]} 5. O-O {[%clk 0:02:56]}  O-O {[%clk 0:02:51]} 6. c3 {[%clk 0:02:56]}  d6 {[%clk 0:02:42]} 7. Nbd2 {[%clk 0:02:55]}  h6 {[%clk 0:02:40]} 8. h3 {[%clk 0:02:54]}  Re8 {[%clk 0:02:39]} 9. Re1 {[%clk 0:02:54]}  a6 {[%clk 0:02:34]} 10. Bb3 {[%clk 0:02:52]}  Be6 {[%clk 0:02:28]} 11. Nf1 {[%clk 0:02:48]}  d5 {[%clk 0:02:25]} 12. Ng3 {[%clk 0:02:42]}  dxe4 {[%clk 0:02:13]} 13. dxe4 {[%clk 0:02:43]}  Qxd1 {[%clk 0:02:09]} 14. Rxd1 {[%clk 0:02:44]}  Bxb3 {[%clk 0:02:09]} 15. axb3 {[%clk 0:02:43]}  Rad8 {[%clk 0:02:09]} 16. Rxd8 {[%clk 0:02:38]}  Rxd8 {[%clk 0:02:10]} 17. Kf1 {[%clk 0:02:38]}  Nd7 {[%clk 0:01:53]} 18. Ke2 {[%clk 0:02:32]}  f6 {[%clk 0:01:52]} 19. h4 {[%clk 0:02:27]}  Nf8 {[%clk 0:01:43]} 20. h5 {[%clk 0:02:27]}  Ne6 {[%clk 0:01:43]} 21. Nf5 {[%clk 0:02:26]}  Ne7 {[%clk 0:01:39]} 22. N3h4 {[%clk 0:02:18]}  Kf7 {[%clk 0:01:08]} 23. g3 {[%clk 0:02:15]}  Ng5 {[%clk 0:00:55]} 24. b4 {[%clk 0:02:06]}  Bb6 {[%clk 0:00:46]} 25. Nxe7 {[%clk 0:02:05]}  Kxe7 {[%clk 0:00:46]} 26. Nf5+ {[%clk 0:02:03]}  Kf7 {[%clk 0:00:45]} 27. Bxg5 {[%clk 0:01:53]}  hxg5 {[%clk 0:00:43]} 28. g4 {[%clk 0:01:41]}  c5 {[%clk 0:00:34]} 29. bxc5 {[%clk 0:01:31]}  Bxc5 {[%clk 0:00:35]} 30. f3 {[%clk 0:01:30]}  Bf8 {[%clk 0:00:19]} 31. Ne3 {[%clk 0:01:29]}  g6 {[%clk 0:00:16]} 32. hxg6+ {[%clk 0:01:29]}  Kxg6 {[%clk 0:00:16]} 33. Nd5 {[%clk 0:01:30]}  Bg7 {[%clk 0:00:13]} 34. Rh1 {[%clk 0:01:29]}  Rh8 {[%clk 0:00:13]} 35. Rxh8 {[%clk 0:01:25]}  Bxh8 {[%clk 0:00:14]} 36. Kd3 {[%clk 0:01:25]}  Bg7 {[%clk 0:00:08]} 37. Kc4 {[%clk 0:01:26]}  Bf8 {[%clk 0:00:08]} 38. b4 {[%clk 0:01:21]}  b5+ {[%clk 0:00:08]} 39. Kb3 {[%clk 0:01:16]}  Bd6 {[%clk 0:00:06]} 40. c4 {[%clk 0:01:16]}  bxc4+ {[%clk 0:00:05]} 41. Kxc4 {[%clk 0:01:17]}  Kf7 {[%clk 0:00:05]} 42. Kb3 {[%clk 0:01:17]}  Ke6 {[%clk 0:00:05]} 43. Ka4 {[%clk 0:01:17]}  Kd7 {[%clk 0:00:02]} 44. Ka5 {[%clk 0:01:17]} 1-0


[Site "https://www.chess.com"]